[Event "47th GER-ch Blitz 2020"]
[Site "Magdeburg"]
[Date "2020.08.15"]
[Round "20.7"]
[White "Holtel, Jasper"]
[Black "Siebarth, Raiko"]
[Result "0-1"]
[ECO "B21"]
[WhiteElo "2305"]
[BlackElo "2333"]
[Annotator "RC"]
[PlyCount "122"]
[EventDate "2020.07.28"]
[EventType "tourn"]
[EventCountry "GER"]
[SourceTitle "playchess.com"]
[Source "ChessBase"]
[SourceQuality "1"]
[TimeControl "180+2"]

1. e4 {[%emt 0:00:00]} c5 {[%emt 0:00:00]} 2. d4 {[%emt 0:00:01]} cxd4 {[%emt 0:00:00]} 3. c3 {[%emt 0:00:01]} Nf6 {[%emt 0:00:00]} 4. e5 {[%emt 0:00:01]} Nd5 {[%emt 0:00:00]} 5. Nf3 e6 6. cxd4 {[%emt 0:00:04]} b6 {[%emt 0:00:01]} 7. a3 {[%emt 0:00:03]} Bb7 {[%emt 0:00:01]} 8. Bd3 {[%emt 0:00:03]} d6 {[%emt 0:00:03]} 9. O-O {[%emt 0:00:02]} Nd7 {[%emt 0:00:01]} 10. Nbd2 {[%emt 0:00:12]} h6 {[%emt 0:00:38]} 11. Ne4 {[%emt 0:00:04]} dxe5 {[%emt 0:00:01]} 12. dxe5 {[%emt 0:00:03]} Rc8 {[%emt 0:00:12]} 13. b4 {[%emt 0:00:07]} Be7 {[%emt 0:00:09]} 14. Bb2 {[%emt 0:00:05]} O-O {[%emt 0:00:03]} 15. Rc1 {[%emt 0:00:28]} Nf4 {[%emt 0:00:10]} 16. Bb1 {[%emt 0:00:05]} Rxc1 {[%emt 0:00:05]} 17. Bxc1 {[%emt 0:00:06]} Ng6 {[%emt 0:00:01]} 18. Bb2 {[%emt 0:00:07]} Qc7 {[%emt 0:00:01]} 19. Qd4 {[%emt 0:00:21]} Rd8 {[%emt 0:00:10]} 20. Rc1 {[%emt 0:00:07]} Qb8 {[%emt 0:00:01]} 21. Nd6 {[%emt 0:00:25]} Ndxe5 {[%emt 0:00:32]} 22. Nxe5 {[%emt 0:01:02]} Bxd6 {[%emt 0:00:11]} 23. Bxg6 {[%emt 0:00:10]} fxg6 {[%emt 0:00:18]} 24. Kh1 {[%emt 0:00:05]} Bxe5 {[%emt 0:00:25]} 25. Qxe5 {[%emt 0:00:01]} Qxe5 {[%emt 0:00:01]} 26. Bxe5 {[%emt 0:00:02]} Rd2 {[%emt 0:00:01]} 27. f3 {[%emt 0:00:03]} Re2 {[%emt 0:00:02]} 28. Bd4 {[%emt 0:00:05]} e5 {[%emt 0:00:03]} 29. Bc3 {[%emt 0:00:01]} e4 {[%emt 0:00:03]} 30. Re1 {[%emt 0:00:03]} Rc2 {[%emt 0:00:08]} 31. Bd4 {[%emt 0:00:01]} exf3 {[%emt 0:00:02]} 32. gxf3 {[%emt 0:00:01]} Bxf3+ {[%emt 0:00:01]} 33. Kg1 {[%emt 0:00:01]} Rg2+ {[%emt 0:00:04]} 34. Kf1 {[%emt 0:00:00]} Rd2 {[%emt 0:00:05]} 35. Ba1 {[%emt 0:00:05]} Kf7 {[%emt 0:00:03]} 36. Re3 {[%emt 0:00:01]} Bd5 {[%emt 0:00:02]} 37. Bc3 {[%emt 0:00:01]} Rxh2 {[%emt 0:00:03]} 38. Kg1 {[%emt 0:00:02]} Rg2+ {[%emt 0:00:01]} 39. Kf1 {[%emt 0:00:01]} Ra2 {[%emt 0:00:02]} 40. Bd4 {[%emt 0:00:05]} g5 {[%emt 0:00:03]} 41. Re5 {[%emt 0:00:01]} Bc4+ {[%emt 0:00:01]} 42. Ke1 {[%emt 0:00:01]} g4 {[%emt 0:00:05]} 43. Re4 {[%emt 0:00:03]} h5 {[%emt 0:00:03]} 44. Rf4+ {[%emt 0:00:03]} Kg6 {[%emt 0:00:01]} 45. Re4 {[%emt 0:00:03]} Rxa3 {[%emt 0:00:07]} 46. Re5 {[%emt 0:00:02]} g3 {[%emt 0:00:04]} 47. Be3 {[%emt 0:00:01]} h4 {[%emt 0:00:03]} 48. Rg5+ {[%emt 0:00:01]} Kf6 {[%emt 0:00:02]} 49. Rg4 {[%emt 0:00:02]} Rxe3+ {[%emt 0:00:01]} 50. Kd2 {[%emt 0:00:00]} Re2+ {[%emt 0:00:02]} 51. Kc3 {[%emt 0:00:01]} b5 {[%emt 0:00:03]} 52. Rf4+ {[%emt 0:00:04]} Kg5 {[%emt 0:00:02]} 53. Rf8 {[%emt 0:00:03]} g2 {[%emt 0:00:01]} 54. Rf3 {[%emt 0:00:04]} g1=Q {[%emt 0:00:04]} 55. Rf5+ {[%emt 0:00:03]} Kg4 {[%emt 0:00:09]} 56. Rf4+ {[%emt 0:00:01]} Kh3 {[%emt 0:00:02]} 57. Rxh4+ Kg2 58. Rg4+ {[%emt 0:00:02]} Kf1 {[%emt 0:00:01]} 59. Rf4+ {[%emt 0:00:04]} Rf2 {[%emt 0:00:02]} 60. Rf5 {[%emt 0:00:03]} Qg3+ {[%emt 0:00:02]} 61. Kd4 {[%emt 0:00:01]} Rxf5 {[%emt 0:00:02]} 0-1

[Event "47th GER-ch Blitz 2020"]
[Site "Magdeburg"]
[Date "2020.08.15"]
[Round "21.2"]
[White "Frischmann, Rick"]
[Black "Zelbel, Patrick"]
[Result "0-1"]
[ECO "B01"]
[WhiteElo "2347"]
[BlackElo "2448"]
[Annotator "RC"]
[PlyCount "82"]
[EventDate "2020.07.28"]
[EventType "tourn"]
[EventCountry "GER"]
[SourceTitle "playchess.com"]
[Source "ChessBase"]
[SourceQuality "1"]
[TimeControl "180+2"]

1. e4 {[%emt 0:00:00]} d5 {[%emt 0:00:00]} 2. exd5 Qxd5 3. Nc3 Qa5 4. d4 Nf6 5. Bc4 {[%emt 0:00:24]} Bg4 {[%emt 0:00:00]} 6. f3 {[%emt 0:00:01]} Bf5 {[%emt 0:00:01]} 7. Nge2 {[%emt 0:00:01]} e6 {[%emt 0:00:01]} 8. O-O {[%emt 0:00:03]} Nbd7 {[%emt 0:00:14]} 9. Ng3 {[%emt 0:00:05]} Bg6 {[%emt 0:00:03]} 10. f4 {[%emt 0:00:09]} O-O-O {[%emt 0:00:10]} 11. Bb3 {[%emt 0:00:20]} h5 {[%emt 0:00:15]} 12. Qf3 {[%emt 0:00:09]} h4 {[%emt 0:00:19]} 13. Nge4 {[%emt 0:00:01]} h3 {[%emt 0:00:15]} 14. g3 {[%emt 0:00:07]} Be7 {[%emt 0:00:20]} 15. Bd2 {[%emt 0:00:07]} Qb6 {[%emt 0:00:26]} 16. Be3 {[%emt 0:00:01]} Nxe4 {[%emt 0:00:20]} 17. Nxe4 {[%emt 0:00:02]} Nf6 {[%emt 0:00:02]} 18. Nf2 {[%emt 0:00:40]} Rxd4 {[%emt 0:00:30]} 19. c3 {[%emt 0:00:10]} Rxf4 {[%emt 0:00:18]} 20. Qxf4 {[%emt 0:00:06]} Qc6 {[%emt 0:00:02]} 21. Nxh3 {[%emt 0:00:25]} Rxh3 {[%emt 0:00:01]} 22. Rad1 {[%emt 0:00:09]} a6 {[%emt 0:00:04]} 23. Ba4 {[%emt 0:00:08]} b5 {[%emt 0:00:11]} 24. Bb3 {[%emt 0:00:01]} Be4 {[%emt 0:00:07]} 25. Bd4 {[%emt 0:00:10]} Rh8 {[%emt 0:00:04]} 26. Rf2 {[%emt 0:00:02]} Bg6 {[%emt 0:00:04]} 27. Re1 {[%emt 0:00:01]} Nd5 {[%emt 0:00:03]} 28. Qd2 {[%emt 0:00:07]} Rd8 {[%emt 0:00:01]} 29. Qc1 {[%emt 0:00:13]} Nf6 {[%emt 0:00:02]} 30. a4 {[%emt 0:00:07]} Ng4 {[%emt 0:00:01]} 31. Rfe2 {[%emt 0:00:01]} bxa4 {[%emt 0:00:02]} 32. Bc2 {[%emt 0:00:02]} Bh5 {[%emt 0:00:03]} 33. Be4 {[%emt 0:00:02]} Qc4 {[%emt 0:00:02]} 34. Rg2 {[%emt 0:00:02]} Rxd4 {[%emt 0:00:02]} 35. cxd4 {[%emt 0:00:01]} Qxd4+ {[%emt 0:00:01]} 36. Kh1 {[%emt 0:00:06]} Nf2+ {[%emt 0:00:02]} 37. Rxf2 Qxf2 {[%emt 0:00:00]} 38. Qc3 {[%emt 0:00:08]} Bf6 {[%emt 0:00:04]} 39. Qa5 {[%emt 0:00:02]} Bf3+ {[%emt 0:00:02]} 40. Bxf3 Qxf3+ 41. Kg1 {[%emt 0:00:03]} Bd4+ {[%emt 0:00:00]} 0-1

[Event "47th GER-ch Blitz 2020"]
[Site "Magdeburg"]
[Date "2020.08.15"]
[Round "21.15"]
[White "Krause, Benedict"]
[Black "Muranyi, Karl-Jasmin"]
[Result "1-0"]
[ECO "B12"]
[WhiteElo "2425"]
[BlackElo "2331"]
[Annotator "ChessBase"]
[PlyCount "64"]
[EventDate "2020.07.28"]
[EventType "tourn"]
[EventCountry "GER"]
[SourceTitle "playchess.com"]
[Source "ChessBase"]
[SourceQuality "1"]
[TimeControl "180+2"]

1. e4 {[%emt 0:00:00]} c6 {[%emt 0:00:00]} 2. d4 {[%emt 0:00:01]} d5 {[%emt 0:00:00]} 3. Nd2 {[%emt 0:00:01]} g6 {[%emt 0:00:00]} 4. Ngf3 {[%emt 0:00:05]} Bg7 {[%emt 0:00:02]} 5. c3 {[%emt 0:00:01]} Bg4 {[%emt 0:00:02]} 6. Bd3 {[%emt 0:00:04]} Nf6 {[%emt 0:00:04]} 7. e5 {[%emt 0:00:02]} Nfd7 {[%emt 0:00:01]} 8. h3 {[%emt 0:00:02]} Bxf3 {[%emt 0:00:02]} 9. Nxf3 {[%emt 0:00:06]} e6 {[%emt 0:00:03]} 10. h4 {[%emt 0:00:03]} h5 {[%emt 0:00:02]} 11. Ng5 {[%emt 0:00:05]} Bh6 {[%emt 0:00:06]} 12. g4 {[%emt 0:00:19]} Bxg5 {[%emt 0:00:07]} 13. Bxg5 {[%emt 0:00:10]} Qb6 {[%emt 0:00:02]} 14. Rb1 {[%emt 0:00:17]} c5 {[%emt 0:00:01]} 15. gxh5 {[%emt 0:00:07]} Rxh5 {[%emt 0:00:02]} 16. Be2 {[%emt 0:00:02]} Rh8 {[%emt 0:00:07]} 17. Kf1 {[%emt 0:00:09]} cxd4 {[%emt 0:00:07]} 18. cxd4 {[%emt 0:00:01]} Nc6 {[%emt 0:00:00]} 19. Be3 {[%emt 0:00:01]} Ne7 {[%emt 0:00:13]} 20. Bd3 {[%emt 0:00:07]} Nb8 {[%emt 0:00:05]} 21. b4 {[%emt 0:00:26]} Nbc6 {[%emt 0:00:09]} 22. a4 {[%emt 0:00:22]} Nf5 {[%emt 0:00:06]} 23. a5 {[%emt 0:00:13]} Nxe3+ {[%emt 0:00:20]} 24. fxe3 Qd8 25. a6 {[%emt 0:00:26]} bxa6 {[%emt 0:00:06]} 26. Qa4 {[%emt 0:00:06]} Qb6 {[%emt 0:00:14]} 27. Rc1 {[%emt 0:00:03]} Rc8 {[%emt 0:00:19]} 28. Bxa6 {[%emt 0:00:13]} g5 {[%emt 0:00:21]} 29. Rc5 {[%emt 0:00:21]} Qxb4 {[%emt 0:00:15]} 30. Rg1 {[%emt 0:00:00]} Kf8 {[%emt 0:00:13]} 31. Ke2 {[%emt 0:00:00]} Ke7 {[%emt 0:00:00]} 32. Rg4 {[%emt 0:00:00]} Kf8 {[%emt 0:00:26]} 1-0

[Event "47th GER-ch Blitz 2020"]
[Site "Magdeburg"]
[Date "2020.08.15"]
[Round "22.2"]
[White "Braeuning, Rudolf Wilhelm"]
[Black "Krause, Benedict"]
[Result "1/2-1/2"]
[ECO "B36"]
[WhiteElo "2244"]
[BlackElo "2425"]
[Annotator "ChessBase"]
[PlyCount "131"]
[EventDate "2020.07.28"]
[EventType "tourn"]
[EventCountry "GER"]
[SourceTitle "playchess.com"]
[Source "ChessBase"]
[SourceQuality "1"]
[TimeControl "180+2"]

1. e4 {[%emt 0:00:00]} c5 {[%emt 0:00:00]} 2. Nf3 {[%emt 0:00:00]} g6 {[%emt 0:00:00]} 3. d4 {[%emt 0:00:02]} cxd4 {[%emt 0:00:01]} 4. Nxd4 {[%emt 0:00:00]} Nc6 {[%emt 0:00:01]} 5. c4 {[%emt 0:00:01]} Nf6 {[%emt 0:00:02]} 6. Nc3 {[%emt 0:00:01]} d6 {[%emt 0:00:01]} 7. Be2 {[%emt 0:00:03]} Nxd4 {[%emt 0:00:01]} 8. Qxd4 {[%emt 0:00:01]} Bg7 {[%emt 0:00:01]} 9. Bg5 {[%emt 0:00:02]} O-O {[%emt 0:00:01]} 10. O-O {[%emt 0:00:07]} Qa5 {[%emt 0:00:33]} 11. Qd2 {[%emt 0:00:06]} Be6 {[%emt 0:00:01]} 12. Rac1 {[%emt 0:00:09]} Rfc8 {[%emt 0:00:11]} 13. b3 {[%emt 0:00:02]} a6 {[%emt 0:00:23]} 14. Bf3 {[%emt 0:01:01]} Rab8 {[%emt 0:00:18]} 15. Nd5 {[%emt 0:00:18]} Qxd2 {[%emt 0:00:05]} 16. Bxd2 {[%emt 0:00:04]} Nxd5 {[%emt 0:00:33]} 17. exd5 {[%emt 0:00:01]} Bd7 {[%emt 0:00:13]} 18. a4 {[%emt 0:00:09]} Bd4 {[%emt 0:00:37]} 19. Rfe1 {[%emt 0:00:06]} e5 {[%emt 0:00:15]} 20. dxe6 {[%emt 0:00:08]} Bxe6 {[%emt 0:00:13]} 21. Bf4 {[%emt 0:00:06]} Rd8 {[%emt 0:00:05]} 22. Rcd1 {[%emt 0:00:39]} Bc5 {[%emt 0:00:01]} 23. Bd5 {[%emt 0:00:04]} Bxd5 {[%emt 0:00:03]} 24. Rxd5 {[%emt 0:00:02]} b5 {[%emt 0:00:01]} 25. cxb5 {[%emt 0:00:12]} axb5 {[%emt 0:00:00]} 26. Ra1 {[%emt 0:00:13]} Ra8 {[%emt 0:00:02]} 27. g3 {[%emt 0:00:03]} bxa4 {[%emt 0:00:03]} 28. bxa4 {[%emt 0:00:01]} Kf8 {[%emt 0:00:01]} 29. Bd2 {[%emt 0:00:02]} Ra6 {[%emt 0:00:01]} 30. a5 {[%emt 0:00:02]} Ke7 {[%emt 0:00:01]} 31. Rd3 {[%emt 0:00:00]} Kd7 {[%emt 0:00:02]} 32. Rb3 {[%emt 0:00:01]} Kc7 {[%emt 0:00:01]} 33. Rab1 {[%emt 0:00:01]} Ra7 {[%emt 0:00:03]} 34. Kg2 {[%emt 0:00:03]} Kc6 {[%emt 0:00:02]} 35. Rf3 {[%emt 0:00:02]} f5 {[%emt 0:00:01]} 36. h4 {[%emt 0:00:01]} Re8 {[%emt 0:00:01]} 37. Kf1 {[%emt 0:00:02]} Re4 {[%emt 0:00:02]} 38. Rfb3 Ra4 39. Rb8 {[%emt 0:00:07]} Ra2 {[%emt 0:00:02]} 40. Be1 {[%emt 0:00:00]} Kd5 {[%emt 0:00:05]} 41. R8b7 {[%emt 0:00:04]} Rxb7 {[%emt 0:00:04]} 42. Rxb7 Ra1 43. Ke2 {[%emt 0:00:04]} Ra2+ {[%emt 0:00:01]} 44. Kf3 {[%emt 0:00:01]} Ra1 {[%emt 0:00:02]} 45. Bd2 {[%emt 0:00:05]} Ra2 {[%emt 0:00:01]} 46. Be3 {[%emt 0:00:00]} Bxe3 {[%emt 0:00:02]} 47. fxe3 {[%emt 0:00:01]} Rxa5 48. Rxh7 {[%emt 0:00:01]} Ke6 {[%emt 0:00:03]} 49. Rh6 {[%emt 0:00:03]} Kf7 {[%emt 0:00:02]} 50. Rh7+ {[%emt 0:00:02]} Kf6 {[%emt 0:00:01]} 51. Rd7 {[%emt 0:00:01]} d5 {[%emt 0:00:01]} 52. Rd6+ {[%emt 0:00:01]} Kf7 {[%emt 0:00:02]} 53. Rb6 {[%emt 0:00:02]} Rc5 {[%emt 0:00:01]} 54. Kf4 {[%emt 0:00:02]} Rc4+ {[%emt 0:00:02]} 55. Kf3 {[%emt 0:00:02]} Rc5 {[%emt 0:00:00]} 56. Rd6 {[%emt 0:00:01]} Rb5 {[%emt 0:00:01]} 57. Ke2 {[%emt 0:00:02]} Rb2+ {[%emt 0:00:05]} 58. Kf3 {[%emt 0:00:03]} Rb5 {[%emt 0:00:01]} 59. Ra6 {[%emt 0:00:04]} Rc5 {[%emt 0:00:00]} 60. g4 {[%emt 0:00:04]} fxg4+ {[%emt 0:00:03]} 61. Kxg4 {[%emt 0:00:01]} Rc1 {[%emt 0:00:12]} 62. Kg5 {[%emt 0:00:03]} Rg1+ {[%emt 0:00:03]} 63. Kh6 {[%emt 0:00:03]} Rg4 {[%emt 0:00:04]} 64. h5 {[%emt 0:00:03]} gxh5 {[%emt 0:00:01]} 65. Kxh5 {[%emt 0:00:01]} Re4 {[%emt 0:00:01]} 66. Ra3 {[%emt 0:00:01]} 1/2-1/2

[Event "47th GER-ch Blitz 2020"]
[Site "Magdeburg"]
[Date "2020.08.15"]
[Round "22.4"]
[White "Weller, Manuel"]
[Black "Schoewel, Matthias"]
[Result "1-0"]
[ECO "A25"]
[WhiteElo "2237"]
[BlackElo "2218"]
[Annotator "ChessBase"]
[PlyCount "67"]
[EventDate "2020.07.28"]
[EventType "tourn"]
[EventCountry "GER"]
[SourceTitle "playchess.com"]
[Source "ChessBase"]
[SourceQuality "1"]
[TimeControl "180+2"]

1. c4 {[%emt 0:00:00]} e5 {[%emt 0:00:00]} 2. g3 {[%emt 0:00:00]} Nc6 {[%emt 0:00:00]} 3. Bg2 {[%emt 0:00:00]} d6 {[%emt 0:00:01]} 4. Nc3 {[%emt 0:00:01]} Be6 {[%emt 0:00:00]} 5. b3 {[%emt 0:00:05]} Qd7 {[%emt 0:00:01]} 6. e3 {[%emt 0:00:04]} Be7 {[%emt 0:00:02]} 7. Bb2 {[%emt 0:00:01]} Nf6 {[%emt 0:00:01]} 8. d3 {[%emt 0:00:10]} Rd8 {[%emt 0:00:05]} 9. Nge2 {[%emt 0:00:08]} Bh3 {[%emt 0:00:02]} 10. O-O {[%emt 0:00:05]} h5 {[%emt 0:00:01]} 11. Nd5 {[%emt 0:00:24]} Bxg2 {[%emt 0:00:11]} 12. Kxg2 {[%emt 0:00:01]} h4 {[%emt 0:00:00]} 13. Nxf6+ {[%emt 0:00:35]} Bxf6 {[%emt 0:00:03]} 14. Ng1 {[%emt 0:00:07]} Ne7 {[%emt 0:00:12]} 15. d4 {[%emt 0:00:08]} e4 {[%emt 0:00:12]} 16. Qc2 {[%emt 0:00:09]} Qf5 {[%emt 0:00:04]} 17. h3 {[%emt 0:00:16]} hxg3 {[%emt 0:00:13]} 18. fxg3 {[%emt 0:00:01]} Qg6 {[%emt 0:00:00]} 19. Qf2 {[%emt 0:00:08]} c6 {[%emt 0:00:10]} 20. Ne2 {[%emt 0:00:07]} Bg5 {[%emt 0:00:14]} 21. Nf4 {[%emt 0:00:12]} Bxf4 {[%emt 0:00:04]} 22. Qxf4 {[%emt 0:00:01]} d5 {[%emt 0:00:08]} 23. Ba3 {[%emt 0:00:01]} Ng8 {[%emt 0:00:18]} 24. cxd5 {[%emt 0:00:05]} cxd5 {[%emt 0:00:02]} 25. Rac1 {[%emt 0:00:03]} Nf6 {[%emt 0:00:09]} 26. Rc7 {[%emt 0:00:07]} Nd7 {[%emt 0:00:06]} 27. Rxb7 {[%emt 0:00:06]} Qh5 {[%emt 0:00:14]} 28. h4 {[%emt 0:00:08]} f6 {[%emt 0:00:02]} 29. Qd6 {[%emt 0:00:04]} Qf7 {[%emt 0:00:09]} 30. Rf5 {[%emt 0:00:06]} g6 {[%emt 0:00:09]} 31. Rxd5 {[%emt 0:00:02]} Rh7 {[%emt 0:00:01]} 32. Rxa7 {[%emt 0:00:02]} g5 {[%emt 0:00:06]} 33. Rxd7 {[%emt 0:00:05]} Rxd7 {[%emt 0:00:35]} 34. Qb8+ {[%emt 0:00:02]} 1-0

[Event "47th GER-ch Blitz 2020"]
[Site "Magdeburg"]
[Date "2020.08.15"]
[Round "22.6"]
[White "Holtel, Jasper"]
[Black "Kopylov, Michael"]
[Result "0-1"]
[ECO "B03"]
[WhiteElo "2305"]
[BlackElo "2407"]
[Annotator "RC"]
[PlyCount "96"]
[EventDate "2020.07.28"]
[EventType "tourn"]
[EventCountry "GER"]
[SourceTitle "playchess.com"]
[Source "ChessBase"]
[SourceQuality "1"]
[TimeControl "180+2"]

1. e4 {[%emt 0:00:00]} Nf6 {[%emt 0:00:00]} 2. e5 {[%emt 0:00:04]} Nd5 {[%emt 0:00:00]} 3. d4 {[%emt 0:00:01]} d6 {[%emt 0:00:01]} 4. exd6 {[%emt 0:00:02]} cxd6 {[%emt 0:00:00]} 5. c4 {[%emt 0:00:01]} Nf6 {[%emt 0:00:02]} 6. Nc3 {[%emt 0:00:02]} g6 {[%emt 0:00:01]} 7. h3 {[%emt 0:00:02]} Bg7 {[%emt 0:00:00]} 8. Nf3 {[%emt 0:00:01]} O-O {[%emt 0:00:02]} 9. Be2 {[%emt 0:00:01]} Nc6 {[%emt 0:00:01]} 10. O-O {[%emt 0:00:02]} d5 {[%emt 0:00:00]} 11. c5 {[%emt 0:00:07]} b6 {[%emt 0:00:12]} 12. Bb5 {[%emt 0:00:05]} Bd7 {[%emt 0:00:03]} 13. Bxc6 {[%emt 0:00:05]} Bxc6 {[%emt 0:00:01]} 14. b4 {[%emt 0:00:05]} bxc5 {[%emt 0:00:08]} 15. bxc5 {[%emt 0:00:02]} Ne4 {[%emt 0:00:04]} 16. Nxe4 {[%emt 0:00:31]} dxe4 {[%emt 0:00:01]} 17. Ne5 {[%emt 0:00:01]} Bd5 {[%emt 0:00:14]} 18. Be3 {[%emt 0:00:03]} Qa5 {[%emt 0:00:04]} 19. Qc2 {[%emt 0:00:16]} Rfd8 {[%emt 0:00:18]} 20. Rfb1 {[%emt 0:00:17]} Qa6 {[%emt 0:00:21]} 21. Rb2 {[%emt 0:00:07]} f6 {[%emt 0:00:17]} 22. Ng4 {[%emt 0:00:02]} h5 {[%emt 0:00:03]} 23. Nh2 {[%emt 0:00:02]} f5 {[%emt 0:00:05]} 24. Rd1 {[%emt 0:00:25]} e5 {[%emt 0:00:19]} 25. dxe5 {[%emt 0:00:08]} Bxe5 {[%emt 0:00:02]} 26. Bd4 {[%emt 0:00:23]} Qf6 {[%emt 0:00:24]} 27. Bxe5 {[%emt 0:00:12]} Qxe5 {[%emt 0:00:00]} 28. Nf1 {[%emt 0:00:07]} f4 {[%emt 0:00:13]} 29. c6 {[%emt 0:00:12]} Rac8 {[%emt 0:00:09]} 30. Rb5 {[%emt 0:00:03]} Qe6 {[%emt 0:00:25]} 31. c7 {[%emt 0:00:13]} Rd7 {[%emt 0:00:06]} 32. Rc5 {[%emt 0:00:15]} Kh7 {[%emt 0:00:19]} 33. a3 {[%emt 0:00:04]} e3 {[%emt 0:00:03]} 34. fxe3 {[%emt 0:00:02]} fxe3 {[%emt 0:00:00]} 35. Qe2 {[%emt 0:00:02]} Rcxc7 {[%emt 0:00:03]} 36. Rxc7 {[%emt 0:00:01]} Rxc7 37. Qxe3 {[%emt 0:00:01]} Rc2 {[%emt 0:00:06]} 38. Qxe6 {[%emt 0:00:04]} Bxe6 {[%emt 0:00:02]} 39. Ne3 {[%emt 0:00:02]} Ra2 {[%emt 0:00:01]} 40. Rd3 {[%emt 0:00:01]} Kg7 {[%emt 0:00:01]} 41. Rc3 {[%emt 0:00:01]} Kf6 {[%emt 0:00:01]} 42. Kh2 {[%emt 0:00:01]} Ke5 {[%emt 0:00:01]} 43. Kg3 {[%emt 0:00:02]} Kd4 {[%emt 0:00:00]} 44. Nd1 {[%emt 0:00:02]} Rd2 {[%emt 0:00:04]} 45. Re3 {[%emt 0:00:02]} Bd5 {[%emt 0:00:01]} 46. Re1 {[%emt 0:00:02]} Rxg2+ {[%emt 0:00:01]} 47. Kh4 {[%emt 0:00:01]} Bf3 {[%emt 0:00:02]} 48. Ne3 {[%emt 0:00:03]} g5# 0-1

[Event "47th GER-ch Blitz 2020"]
[Site "Magdeburg"]
[Date "2020.08.15"]
[Round "22.7"]
[White "Langrock, Hannes"]
[Black "Hess, Max"]
[Result "0-1"]
[ECO "E69"]
[WhiteElo "2346"]
[BlackElo "2378"]
[Annotator "RC"]
[PlyCount "94"]
[EventDate "2020.07.28"]
[EventType "tourn"]
[EventCountry "GER"]
[SourceTitle "playchess.com"]
[Source "ChessBase"]
[SourceQuality "1"]
[TimeControl "180+2"]

1. d4 {[%emt 0:00:00]} Nf6 {[%emt 0:00:00]} 2. c4 {[%emt 0:00:00]} g6 {[%emt 0:00:00]} 3. g3 {[%emt 0:00:00]} Bg7 {[%emt 0:00:01]} 4. Bg2 {[%emt 0:00:01]} O-O {[%emt 0:00:01]} 5. Nc3 {[%emt 0:00:01]} d6 {[%emt 0:00:01]} 6. Nf3 {[%emt 0:00:01]} Nbd7 {[%emt 0:00:01]} 7. O-O {[%emt 0:00:02]} e5 {[%emt 0:00:00]} 8. e4 {[%emt 0:00:03]} c6 {[%emt 0:00:02]} 9. h3 {[%emt 0:00:04]} Qa5 {[%emt 0:00:01]} 10. Re1 {[%emt 0:00:04]} exd4 {[%emt 0:00:03]} 11. Nxd4 {[%emt 0:00:02]} Ne5 {[%emt 0:00:01]} 12. Bf1 {[%emt 0:00:03]} Be6 {[%emt 0:00:03]} 13. Nxe6 {[%emt 0:00:09]} fxe6 {[%emt 0:00:01]} 14. Kg2 {[%emt 0:00:09]} Rad8 {[%emt 0:00:10]} 15. f4 {[%emt 0:00:11]} Nf7 {[%emt 0:00:02]} 16. Be3 {[%emt 0:00:09]} e5 {[%emt 0:00:11]} 17. Qd2 exf4 {[%emt 0:00:24]} 18. gxf4 {[%emt 0:00:38]} Rde8 {[%emt 0:00:24]} 19. Bd3 {[%emt 0:00:04]} Nh5 {[%emt 0:00:07]} 20. Rf1 {[%emt 0:00:20]} Qd8 {[%emt 0:00:25]} 21. Rae1 {[%emt 0:00:17]} Bh6 {[%emt 0:00:18]} 22. Be2 {[%emt 0:00:17]} Qh4 {[%emt 0:00:09]} 23. Bxh5 {[%emt 0:00:05]} Qxh5 {[%emt 0:00:01]} 24. Qe2 {[%emt 0:00:14]} Qa5 {[%emt 0:00:10]} 25. Qg4 {[%emt 0:00:08]} Bg7 {[%emt 0:00:04]} 26. Bd2 {[%emt 0:00:05]} Qb4 {[%emt 0:00:10]} 27. Qe2 {[%emt 0:00:15]} Qxb2 {[%emt 0:00:17]} 28. Rb1 {[%emt 0:00:02]} Qa3 {[%emt 0:00:02]} 29. Rxb7 {[%emt 0:00:17]} Bxc3 {[%emt 0:00:09]} 30. Rb3 {[%emt 0:00:01]} Qxa2 {[%emt 0:00:04]} 31. Rxc3 {[%emt 0:00:02]} Re7 {[%emt 0:00:16]} 32. Qd3 {[%emt 0:00:05]} Rfe8 {[%emt 0:00:02]} 33. Rc2 {[%emt 0:00:05]} Qa6 {[%emt 0:00:02]} 34. Re1 {[%emt 0:00:02]} Qb7 {[%emt 0:00:01]} 35. Bc3 {[%emt 0:00:02]} c5 {[%emt 0:00:03]} 36. Rce2 {[%emt 0:00:03]} Qd7 {[%emt 0:00:06]} 37. Ba1 {[%emt 0:00:01]} d5 {[%emt 0:00:14]} 38. cxd5 {[%emt 0:00:04]} Nd6 39. Qc3 {[%emt 0:00:04]} Rf8 {[%emt 0:00:05]} 40. Qh8+ {[%emt 0:00:05]} Kf7 {[%emt 0:00:01]} 41. Qxh7+ Ke8 42. e5 {[%emt 0:00:04]} Rxh7 {[%emt 0:00:02]} 43. exd6+ {[%emt 0:00:03]} Kd8 {[%emt 0:00:03]} 44. Be5 {[%emt 0:00:02]} Qxh3+ 45. Kf2 g5 {[%emt 0:00:08]} 46. Rb1 {[%emt 0:00:03]} Rxf4+ 47. Bxf4 gxf4 0-1

[Event "47th GER-ch Blitz 2020"]
[Site "Magdeburg"]
[Date "2020.08.15"]
[Round "22.8"]
[White "Siebrecht, Sebastian"]
[Black "Siebarth, Raiko"]
[Result "0-1"]
[ECO "E73"]
[WhiteElo "2429"]
[BlackElo "2333"]
[Annotator "ChessBase"]
[PlyCount "68"]
[EventDate "2020.07.28"]
[EventType "tourn"]
[EventCountry "GER"]
[SourceTitle "playchess.com"]
[Source "ChessBase"]
[SourceQuality "1"]
[TimeControl "180+2"]

1. c4 {[%emt 0:00:00]} g6 {[%emt 0:00:01]} 2. Nc3 {[%emt 0:00:00]} Bg7 {[%emt 0:00:01]} 3. d4 {[%emt 0:00:01]} d6 {[%emt 0:00:01]} 4. e4 {[%emt 0:00:01]} Nf6 {[%emt 0:00:01]} 5. Be2 {[%emt 0:00:01]} O-O {[%emt 0:00:01]} 6. g4 {[%emt 0:00:00]} Nfd7 {[%emt 0:00:08]} 7. h4 {[%emt 0:00:07]} c5 {[%emt 0:00:01]} 8. d5 {[%emt 0:00:01]} Qa5 {[%emt 0:00:19]} 9. h5 {[%emt 0:00:10]} b5 {[%emt 0:00:09]} 10. cxb5 {[%emt 0:00:05]} a6 {[%emt 0:00:01]} 11. b6 {[%emt 0:00:11]} Qxb6 {[%emt 0:00:12]} 12. hxg6 {[%emt 0:00:12]} fxg6 {[%emt 0:00:02]} 13. Nf3 {[%emt 0:00:13]} Ne5 {[%emt 0:00:33]} 14. Ng5 {[%emt 0:00:14]} c4 {[%emt 0:00:09]} 15. f4 {[%emt 0:00:08]} h6 {[%emt 0:00:15]} 16. Ne6 {[%emt 0:00:13]} Bxe6 {[%emt 0:00:01]} 17. dxe6 {[%emt 0:00:01]} Nec6 {[%emt 0:00:05]} 18. f5 {[%emt 0:00:30]} g5 {[%emt 0:00:01]} 19. Bxc4 {[%emt 0:00:12]} Ne5 {[%emt 0:00:08]} 20. Qe2 {[%emt 0:00:25]} Nbc6 {[%emt 0:00:01]} 21. Be3 {[%emt 0:00:14]} Nd4 {[%emt 0:00:13]} 22. Bxd4 {[%emt 0:00:25]} Qxd4 {[%emt 0:00:01]} 23. Bd5 {[%emt 0:00:00]} Rab8 {[%emt 0:00:01]} 24. Rd1 {[%emt 0:00:03]} Qb4 {[%emt 0:00:04]} 25. Rd2 {[%emt 0:00:05]} Qc5 {[%emt 0:00:12]} 26. Kd1 {[%emt 0:00:04]} Rfc8 {[%emt 0:00:05]} 27. Kc1 {[%emt 0:00:03]} Rxb2 {[%emt 0:00:05]} 28. Rxb2 {[%emt 0:00:03]} Qxc3+ {[%emt 0:00:01]} 29. Kb1 {[%emt 0:00:12]} Nd3 {[%emt 0:00:01]} 30. Qc2 {[%emt 0:00:03]} Qxb2+ {[%emt 0:00:05]} 31. Qxb2 Nxb2 {[%emt 0:00:01]} 32. Rh3 {[%emt 0:00:03]} Na4 {[%emt 0:00:02]} 33. Rb3 {[%emt 0:00:02]} Nc3+ {[%emt 0:00:01]} 34. Kc2 {[%emt 0:00:01]} Nxd5+ {[%emt 0:00:01]} 0-1